lending/lending_fUSD_20251125
["ID","MTS","AMOUNT","RATE_DAILY","PERIOD"]
[394878403,1764052241257,-1177.095,0.00038317,51]
[394878404,1764052241267,-1000.0,0.00038355,5]
[394878405,1764052241276,-1000.0,0.00038355,7]
[394878406,1764052241285,-320.9144921,0.00038356,8]
[394878407,1764052241294,-500.0,0.00038356,8]
[394878408,1764052241303,-223.60051766,0.00038356,8]
[394878409,1764052241312,-637.0,0.00038356,8]
[394878410,1764052241322,-1500.44,0.00038356,8]
[394878411,1764052241331,-1000.0,0.00038356,120]
[394878412,1764052241340,-842.09,0.00038356,14]
[394878413,1764052241349,-500.0,0.00038356,8]
[394878414,1764052241358,-500.0,0.00038356,8]
[394878415,1764052241367,-500.0,0.00038356,8]
[394878416,1764052241377,-292.2649795,0.00038356,8]
[394878417,1764052241386,-500.0,0.00038356,2]
[394878418,1764052241398,-151.0,0.00038356,31]
[394878419,1764052241409,-154.806142,0.00038356,31]
[394878420,1764052241418,-500.0,0.00038356,8]
[394878421,1764052241427,-418.6517101,0.00038356,8]
[394878422,1764052241437,-500.0,0.00038356,8]
[394878423,1764052241447,-222.06564365,0.00038356,8]
[394878424,1764052241457,-160.44947238,0.00038356,8]
[394878425,1764052241467,-500.0,0.00038356,8]
[394878426,1764052241477,-372.9393071,0.00038356,8]
[394878427,1764052241486,-597.58820766,0.00038356,8]
[394878428,1764052241495,-500.0,0.00038356,8]
[394878429,1764052241505,-401.33054127,0.00038356,8]
[394878430,1764052241515,-500.0,0.00038356,8]
[394878431,1764052241524,-607.05947164,0.00038356,8]
[394878432,1764052241534,-500.0,0.00038356,8]
[394878433,1764052241543,-197.44950516,0.00038356,8]
[394878434,1764052241553,-500.0,0.00038356,8]
[394878435,1764052241562,-500.0,0.00038356,8]
[394878436,1764052241572,-500.0,0.00038356,8]
[394878437,1764052241581,-500.0,0.00038356,8]
[394878438,1764052241590,-500.0,0.00038356,8]
[394878439,1764052241600,-500.0,0.00038356,8]
[394878440,1764052241609,-500.0,0.00038356,8]
[394878441,1764052241618,-554.53587272,0.00038356,8]
[394878442,1764052241628,-224.83647261,0.00038356,2]
[394878443,1764052241637,-150.0,0.00038356,5]
[394878444,1764052241647,-354.74436096,0.00038464,2]
[394878445,1764052241656,-169.42,0.00038466,2]
[394878446,1764052241666,-150.0,0.00038466,2]
[394878447,1764052241675,-150.0,0.00038466,2]
[394878448,1764052241685,-150.0,0.00038466,2]
[394878449,1764052241694,-150.0,0.00038466,2]
[394878450,1764052241704,-150.0,0.00038466,2]
[394878451,1764052241714,-150.0,0.00038466,2]
[394878452,1764052241724,-150.0,0.00038466,2]
[394878453,1764052241734,-150.0,0.00038466,2]
[394878454,1764052241743,-925.12443,0.0003849,2]
[394878455,1764052241753,-2000.0,0.000385,30]
[394878456,1764052241763,-200.0,0.00038569,20]
[394878457,1764052241773,-1000.0,0.00038629,7]
[394878458,1764052241783,-449.37938244,0.0003863,8]
[394878459,1764052241793,-1500.44,0.0003863,8]
[394878460,1764052241803,-842.09,0.0003863,30]
[394878461,1764052241812,-421.54361741,0.0003863,8]
[394878462,1764052241824,-283.020499,0.0003863,120]
[394878463,1764052241834,-500.0,0.0003863,8]
[394878464,1764052241843,-500.0,0.0003863,8]
[394878465,1764052241853,-500.0,0.0003863,2]
[394878466,1764052241863,-521.87646364,0.0003863,8]
[394878467,1764052241873,-500.0,0.0003863,8]
[394878468,1764052241883,-500.0,0.0003863,8]
[394878469,1764052241892,-500.0,0.0003863,8]
[394878470,1764052241902,-500.0,0.0003863,8]
[394878471,1764052241911,-500.0,0.0003863,8]
[394878472,1764052241921,-500.0,0.0003863,8]
[394878473,1764052241930,-500.0,0.0003863,8]
[394878474,1764052241940,-500.0,0.0003863,8]
[394878475,1764052241950,-367.94677771,0.0003863,8]
[394878476,1764052241959,-185.51903109,0.0003863,8]
[394878477,1764052241969,-500.0,0.0003863,8]
[394878478,1764052241978,-500.0,0.0003863,8]
[394878479,1764052241987,-925.12443,0.000387,2]
[394878480,1764052241997,-1000.0,0.00038798,7]
[394878481,1764052242010,-500.0,0.00038841,2]
[394878482,1764052242019,-970.82912551,0.00038875,2]
[394878483,1764052242029,-1000.0,0.00038879,2]
[394878484,1764052242038,-151.0,0.0003888,2]
[394878485,1764052242047,-925.12443,0.0003888,2]
[394878486,1764052242057,-479.24,0.0003889,2]
[394878487,1764052242066,-479.24,0.0003889,2]
[394878488,1764052242077,-479.24,0.0003889,2]
[394878489,1764052242086,-479.24,0.0003889,2]
[394878490,1764052242095,-479.24,0.0003889,2]
[394878491,1764052242104,-479.24,0.0003889,2]
[394878492,1764052242114,-479.24,0.0003889,2]
[394878493,1764052242123,-476.28,0.0003889,2]
[394878494,1764052242132,-1000.0,0.00038903,7]
[394878495,1764052242142,-1500.44,0.00038904,8]
[394878496,1764052242151,-1000.0,0.00038904,120]
[394878497,1764052242165,-842.09,0.00038904,30]
[394878498,1764052242174,-500.0,0.00038904,8]
[394878499,1764052242184,-500.0,0.00038904,8]
[394878500,1764052242193,-500.0,0.00038904,2]
[394878501,1764052242203,-519.23415077,0.00038904,8]
[394878502,1764052242212,-500.0,0.00038904,8]
[394878503,1764052242221,-500.0,0.00038904,8]
[394878504,1764052242231,-500.0,0.00038904,8]
[394878505,1764052242240,-500.0,0.00038904,8]
[394878506,1764052242250,-500.0,0.00038904,8]
[394878507,1764052242259,-340.56317152,0.00038904,8]
[394878508,1764052242269,-624.91081837,0.00038904,8]
[394878509,1764052242279,-500.0,0.00038904,8]
[394878510,1764052242288,-925.12444,0.0003895,2]
[394878511,1764052242298,-1876.23060513,0.00039,2]
[394878512,1764052242307,-1004.85543449,0.00039,30]
[394878513,1764052242317,-1500.44,0.00039178,8]
[394878514,1764052242327,-842.09,0.00039178,30]
[394878515,1764052242337,-500.0,0.00039178,8]
[394878516,1764052242346,-500.0,0.00039178,8]
[394878517,1764052242355,-220.28622961,0.00039178,2]
[394878518,1764052242365,-500.0,0.00039178,8]
[394878519,1764052242374,-500.0,0.00039178,8]
[394878520,1764052242383,-500.0,0.00039178,8]
[394878521,1764052242392,-511.57710936,0.00039178,8]
[394878522,1764052242401,-500.0,0.00039178,8]
[394878523,1764052242411,-434.91204558,0.00039178,8]
[394878524,1764052242420,-1000.0,0.00039185,2]
[394878525,1764052242429,-925.12443,0.000392,2]
[394878526,1764052242438,-1600.0,0.00039227,120]
[394878527,1764052242448,-925.12443,0.0003945,2]
[394878528,1764052242457,-1500.44,0.00039452,8]
[394878529,1764052242466,-1000.0,0.00039452,120]
[394878530,1764052242475,-842.09,0.00039452,30]
[394878531,1764052242485,-500.0,0.00039452,8]
[394878532,1764052242495,-500.0,0.00039452,8]
[394878533,1764052242504,-500.0,0.00039452,8]
[394878534,1764052242514,-500.0,0.00039452,8]
[394878535,1764052242522,-500.0,0.00039452,8]
[394878536,1764052242532,-506.62406472,0.00039452,8]
[394878537,1764052242541,-1162.92297831,0.00039626,15]
[394878538,1764052242551,-459.41,0.00039654,2]
[394878539,1764052242560,-234.71436736,0.00039654,2]
[394878540,1764052242569,-203.67731512,0.00039654,2]
[394878541,1764052242580,-1500.44,0.00039726,8]
[394878542,1764052242589,-842.09,0.00039726,30]
[394878543,1764052242599,-500.0,0.00039726,8]
[394878544,1764052242608,-500.0,0.00039726,8]
[394878545,1764052242618,-570.53683778,0.00039726,8]
[394878546,1764052242627,-500.0,0.00039726,8]
[394878547,1764052242637,-500.0,0.00039726,8]
[394878548,1764052242646,-250.0,0.00039726,5]
[394878549,1764052242656,-2000.0,0.000398,3]
[394878550,1764052242666,-150.0,0.00039848,7]
[394878551,1764052242676,-150.0,0.00039848,7]
[394878552,1764052242686,-150.0,0.00039848,7]
[394878553,1764052242696,-173.12899083,0.000399,2]
[394878554,1764052242705,-158.0,0.0003996,87]
[394878556,1764052242715,-1320.36572899,0.0003997,2]
[394878564,1764052242892,-700.0,0.0003997,2]
[394878565,1764052242902,-546.80554236,0.00039999,31]
[394878566,1764052242913,-381.15242144,0.00039999,31]
[394878567,1764052242923,-500.0,0.00039999,31]
[394878568,1764052242932,-500.0,0.00039999,31]
[394878569,1764052242942,-500.0,0.00039999,31]
[394878570,1764052242951,-471.50401739,0.00039999,31]
[394878571,1764052242960,-87756.30637916,0.0004,3]
[394878572,1764052242969,-1016.16609135,0.0004,30]
[394878573,1764052242979,-1000.0,0.0004,120]
[394878574,1764052242989,-1000.0,0.0004,120]
[394878575,1764052242998,-1000.0,0.0004,120]
[394878576,1764052243011,-1000.0,0.0004,120]
[394878577,1764052243021,-1000.0,0.0004,120]
[394878578,1764052243030,-1000.0,0.0004,120]
[394878579,1764052243039,-1000.0,0.0004,120]
[394878580,1764052243050,-1000.0,0.0004,120]
[394878581,1764052243060,-1000.0,0.0004,120]
[394878582,1764052243069,-1000.0,0.0004,120]
[394878583,1764052243080,-1000.0,0.0004,120]
[394878584,1764052243089,-1000.0,0.0004,120]
[394878585,1764052243098,-1000.0,0.0004,120]
[394878586,1764052243108,-1000.0,0.0004,120]
[394878587,1764052243119,-1000.0,0.0004,120]
[394878588,1764052243137,-1000.0,0.0004,120]
[394878589,1764052243146,-1000.0,0.0004,120]
[394878590,1764052243156,-1000.0,0.0004,120]
[394878591,1764052243167,-1000.0,0.0004,120]
[394878592,1764052243176,-200.0,0.0004,120]
[394878593,1764052243185,-217.19835064,0.0004,120]
[394878594,1764052243194,-168.02935739,0.0004,30]
[394878595,1764052243203,-204.982852,0.0004,120]
[394878596,1764052243213,-246.58109202,0.0004,2]
[394878597,1764052243222,-500.0,0.0004,61]
[394878598,1764052243232,-2983.9970611,0.0004,5]
[394878599,1764052243241,-214.65,0.0004,120]
[394878600,1764052243250,-627.59,0.0004,120]
[394878601,1764052243260,-189.9,0.0004,120]
[394878602,1764052243270,-1500.44,0.0004,8]
[394878603,1764052243279,-1000.0,0.0004,120]
[394878604,1764052243288,-842.09,0.0004,30]
[394878605,1764052243298,-500.0,0.0004,8]
[394878606,1764052243307,-500.0,0.0004,8]
[394878607,1764052243317,-500.0,0.0004,8]
[394878608,1764052243327,-500.0,0.0004,8]
[394878609,1764052243343,-1856.0,0.0004,120]
[394878610,1764052243352,-1000.0,0.00040067,2]
[394878611,1764052243362,-2743.0,0.00040179,5]
[394878612,1764052243372,-1300.0,0.0004018,7]
[394878613,1764052243383,-500.0,0.0004018,7]
[394878614,1764052243393,-500.0,0.0004018,7]
[394878615,1764052243402,-25000.0,0.00040229,15]
[394878616,1764052243412,-1500.44,0.00040273,8]
[394878617,1764052243421,-500.0,0.00040273,8]
[394878618,1764052243430,-500.0,0.00040273,8]
[394878619,1764052243440,-500.0,0.00040273,8]
[394878620,1764052243449,-500.0,0.00040273,8]
[394878621,1764052243458,-842.12,0.00040274,30]
[394878622,1764052243467,-300.250731,0.00040339,100]
[394878623,1764052243477,-340.27,0.00040534,2]
[394878624,1764052243486,-1500.44,0.00040547,8]
[394878625,1764052243496,-500.0,0.00040547,8]
[394878626,1764052243505,-500.0,0.00040547,8]
[394878627,1764052243514,-500.0,0.00040547,8]
[394878628,1764052243523,-500.0,0.00040547,8]
[394878629,1764052243533,-1000.0,0.00040548,120]
[394878630,1764052243542,-173.12899083,0.00040557,2]
[394878631,1764052243551,-500.0,0.000407,120]
[394878632,1764052243560,-517.0,0.000407,120]
[394878633,1764052243570,-303.6,0.00040712,14]
[394878634,1764052243580,-580.0,0.00040717,30]
[394878635,1764052243589,-2282.37,0.00040739,30]
[394878636,1764052243599,-2282.37,0.00040739,30]
[394878637,1764052243608,-2282.37,0.00040739,30]
[394878638,1764052243618,-2282.37,0.00040739,30]
[394878639,1764052243627,-7908.01075908,0.00040764,2]
[394878640,1764052243637,-210.10053974,0.00040821,14]
[394878641,1764052243649,-1500.44,0.00040821,8]
[394878642,1764052243658,-500.0,0.00040821,8]
[394878643,1764052243668,-500.0,0.00040821,8]
[394878644,1764052243677,-500.0,0.00040821,8]
[394878645,1764052243686,-500.0,0.00040821,8]
[394878646,1764052243696,-150.0,0.00040821,120]
[394878647,1764052243706,-5800.0,0.00040866,14]
[394878648,1764052243716,-5800.0,0.00040875,14]
[394878649,1764052243725,-404.53,0.000409,120]
[394878650,1764052243735,-198.25,0.00040954,120]
[394878651,1764052243745,-1200.0,0.00040959,2]
[394878652,1764052243755,-1200.0,0.00040959,2]
[394878653,1764052243764,-1200.0,0.00040959,2]
[394878654,1764052243773,-1200.0,0.00040959,2]
[394878655,1764052243783,-1200.0,0.00040959,2]
[394878656,1764052243792,-1238.92024383,0.00040959,2]
[394878657,1764052243801,-619.67157162,0.00040972,13]
[394878658,1764052243810,-619.67157157,0.00040972,13]
[394878659,1764052243819,-619.67157157,0.00040972,13]
[394878660,1764052243830,-500.0,0.00040999,120]
[394878661,1764052243839,-33788.120242,0.00041,3]
[394878662,1764052243855,-8582.69997773,0.00041,3]
[394878663,1764052243866,-18918.66485633,0.00041,3]
[394878664,1764052243877,-1473.93621704,0.00041,3]
[394878691,1764052245058,-500.0,0.00016999,2]
[394878695,1764052245068,-500.0,0.00016999,2]
[394878699,1764052245077,-500.0,0.00016999,2]
[394878703,1764052245089,-500.0,0.00016999,2]
[394878706,1764052245098,-500.0,0.00016999,2]
[394878709,1764052245107,-500.0,0.00016999,2]
[394878712,1764052245116,-500.0,0.00016999,2]
[394878715,1764052245125,-908.0,0.00023742,2]
[394878718,1764052245135,-444.881,0.00026742,2]
[394878720,1764052245144,-151.0,0.00040959,2]
[394878722,1764052245154,-12637.519,0.00041,3]
[394878781,1764052246026,-214.22425419,0.00016999,2]
[394878782,1764052246036,-500.0,0.00016999,2]
[394878783,1764052246045,-32.17701416,0.00016999,2]
[394878784,1764052246057,-409.55999997,0.00016999,2]
[394878785,1764052246365,-58.26298587,0.00016999,2]
[394878786,1764052246376,-500.0,0.00016999,2]
[394878787,1764052246386,-1991.28401353,0.00041,3]
[394878831,1764052375951,9694.7184,0.00014617,2]
[394878832,1764052375983,10000.01,0.00014617,2]
[394878833,1764052376013,10000.01,0.00014617,2]
[394878834,1764052376045,10000.01,0.00014617,2]
[394878835,1764052376084,10000.01,0.00014617,2]
[394878836,1764052376115,10000.01,0.00014617,2]
[394878837,1764052376147,10000.01,0.00014617,2]
[394878838,1764052376177,10000.01,0.00014617,2]
[394878839,1764052376208,10000.01,0.00014617,2]
[394878840,1764052376238,10000.01,0.00014617,2]
[394878841,1764052376591,-768.93566114,0.00014617,2]
[394878844,1764052382845,-193.38657679,0.00014617,2]
[394878846,1764052385468,-500.0,0.00014617,2]
[394878852,1764052390364,-500.0,0.00014617,2]
[394878855,1764052392592,178.46698357,0.00014617,2]
[394878856,1764052392643,2207.00995026,0.00014617,2]
[394878859,1764052392682,307.74585042,0.00014617,2]
[394878860,1764052393568,-500.0,0.00014617,2]
[394878863,1764052397857,-500.0,0.00014617,2]
[394878866,1764052399912,-500.0,0.00014617,2]
[394878868,1764052402576,-499.99,0.00014617,2]
[394878871,1764052406026,-500.0,0.00014617,2]
[394878874,1764052408231,-500.0,0.00014617,2]
[394878875,1764052409674,-500.0,0.00014617,2]
[394878877,1764052413421,-411.28167679,0.00014617,2]
[394878879,1764052417742,-788.71832321,0.00014617,2]
[394878883,1764052421441,-450.0,0.00014617,2]
[394878887,1764052430731,157.58535737,0.00014517,2]
[394878986,1764052486382,500.0,0.00014616,2]
[394878989,1764052501318,300.0,0.00014616,2]
[394878990,1764052501356,1200.0,0.00014616,2]
[394878991,1764052505237,625.21960734,0.00014517,2]
[394878994,1764052514575,647.06395303,0.00014517,2]
[394878996,1764052542932,500.0,0.00014616,2]
[394878997,1764052542976,500.0,0.00014616,2]
[394878998,1764052543016,500.0,0.00014616,2]
[394878999,1764052543055,500.0,0.00014616,2]
[394879000,1764052543096,500.0,0.00014616,2]
[394879001,1764052543149,319.79807299,0.00014616,2]
[394879002,1764052546727,450.5612801,0.00014616,2]
[394879004,1764052562039,150.0,0.00014616,2]
[394879009,1764052623471,212.18898424,0.00014517,2]
[394879011,1764052653497,244.36996068,0.00014517,2]
[394879012,1764052653521,5833.47165516,0.00014517,2]
[394879015,1764052696049,157.58535735,0.00014517,2]
[394879016,1764052703949,-1650.0,0.00014617,2]
[394879017,1764052760932,257.75534144,0.00014616,2]
[394879018,1764052801320,987.0,0.00014616,2]
[394879019,1764052802819,208.0,0.00014617,2]
[394879020,1764052804595,2556.19764605,0.00014607,2]
[394879021,1764052804620,8890.59235395,0.00014607,2]
[394879022,1764052805114,1109.41764605,0.00014607,2]
[394879023,1764052805139,10000.01,0.00014607,2]
[394879024,1764052805164,337.36235395,0.00014607,2]
[394879025,1764052826209,444.0344,0.00014517,2]
[394879026,1764052874412,500.0,0.00014616,2]
[394879027,1764052874461,254.76071034,0.00014616,2]
[394879028,1764052892874,851.655,0.00014325,2]
[394879029,1764052892911,168.834,0.00014325,2]
[394879031,1764052903800,185.66536121,0.00014517,2]
[394879032,1764052906310,500.0,0.00014616,2]
[394879033,1764052906365,254.76071034,0.00014616,2]
[394879036,1764052951389,157.58535735,0.00014517,2]
[394879038,1764052968464,500.0,0.00014616,2]
[394879039,1764052968569,254.76071034,0.00014616,2]
[394879040,1764052980157,500.0,0.00014616,2]
[394879041,1764052980214,254.76071034,0.00014616,2]
[394879043,1764053000463,500.0,0.00014616,2]
[394879044,1764053000511,254.76071034,0.00014616,2]
[394879046,1764053025088,760.97901858,0.00014517,2]
[394879048,1764053031892,500.0,0.00014616,2]
[394879049,1764053031947,254.76071034,0.00014616,2]
[394879050,1764053039817,2902.69260082,0.00014517,2]
[394879051,1764053039843,2610.07778771,0.00014517,2]
[394879053,1764053063341,254.76071034,0.00014616,2]
[394879054,1764053063381,500.0,0.00014616,2]
[394879058,1764053086302,6635.17150195,0.00014517,2]
[394879059,1764053086326,10000.01,0.00014517,2]
[394879060,1764053086348,10000.01,0.00014517,2]
[394879061,1764053086377,10000.01,0.00014517,2]
[394879062,1764053086399,10000.01,0.00014517,2]
[394879063,1764053086422,10000.01,0.00014517,2]
[394879064,1764053086444,10000.01,0.00014517,2]
[394879065,1764053086466,10000.01,0.00014517,2]
[394879066,1764053086489,142.02999805,0.00014517,2]
[394879067,1764053094608,500.0,0.00014616,2]
[394879068,1764053094656,254.76071034,0.00014616,2]
[394879069,1764053125977,500.0,0.00014616,2]
[394879070,1764053126027,254.76071034,0.00014616,2]
[394879071,1764053137188,3170.7922,0.00014517,2]
[394879072,1764053157762,500.0,0.00014616,2]
[394879073,1764053157817,254.76071034,0.00014616,2]
[394879074,1764053184089,182.72494794,0.00014517,2]
[394879075,1764053184271,489.85,0.00013699,2]
[394879076,1764053201858,500.0,0.00014616,2]
[394879077,1764053201960,254.76071034,0.00014616,2]
[394879078,1764053221119,500.0,0.00014616,2]
[394879079,1764053221171,254.76071034,0.00014616,2]
[394879080,1764053253939,500.0,0.00014616,2]
[394879081,1764053254005,254.76071034,0.00014616,2]
[394879082,1764053285794,500.0,0.00014616,2]
[394879083,1764053285849,254.76071026,0.00014616,2]
[394879088,1764053372266,731.28788171,0.00014517,2]
[394879089,1764053372293,10000.01,0.00014517,2]
[394879090,1764053372320,10000.01,0.00014517,2]
[394879091,1764053372347,10000.01,0.00014517,2]
[394879092,1764053372378,10000.01,0.00014517,2]
[394879093,1764053372408,10000.01,0.00014517,2]
[394879094,1764053372433,10000.01,0.00014517,2]
[394879095,1764053372463,10000.01,0.00014517,2]
[394879096,1764053372488,10000.01,0.00014517,2]
[394879097,1764053372513,10000.01,0.00014517,2]
[394879099,1764053403363,207.0,0.00014517,2]
[394879102,1764053432162,-13881.41386673,0.00014517,2]
[394879103,1764053432178,-271.90586894,0.00014517,2]
[394879104,1764053432252,-1736.55047373,0.00014517,2]
[394879105,1764053432263,-2635.21023496,0.00014517,2]
[394879106,1764053432379,-523.0,0.00014517,2]
[394879156,1764053440355,-585.81238879,0.00014517,2]
[394879157,1764053440367,-1363.68834929,0.00014517,2]
[394879158,1764053440566,-444.03440017,0.00014517,2]
[394879159,1764053440577,-1446.41958768,0.00014517,2]
[394879160,1764053440588,-52875.679448,0.00014517,2]
[394879161,1764053440597,-1000.0,0.00014617,2]
[394879162,1764053440606,-225.21969723,0.000149,2]
[394879163,1764053440616,-406.49495038,0.000159,2]
[394879164,1764053440627,-250.0,0.00016079,2]
[394879165,1764053440636,-195.0,0.00016079,2]
[394879166,1764053440645,-1100.81354702,0.00019,2]
[394879167,1764053440654,-17062.92873853,0.00019,2]
[394879168,1764053440664,-489.85,0.00020187,2]
[394879169,1764053440673,-1659.66486672,0.00022861,2]
[394879170,1764053440683,-489.85,0.00026676,2]
[394879171,1764053440691,-170.26,0.00029706,2]
[394879172,1764053440700,-150.99,0.00029706,2]
[394879173,1764053440709,-489.85,0.00033165,2]
[394879174,1764053440718,-170.26,0.00034657,2]
[394879175,1764053440728,-166.66,0.0003526,30]
[394879176,1764053440737,-2000.0,0.00036,2]
[394879177,1764053440746,-166.66,0.00036002,30]
[394879178,1764053440755,-166.66,0.00036745,30]
[394879179,1764053440764,-26983.81,0.00037159,2]
[394879180,1764053440774,-166.66,0.00037487,30]
[394879181,1764053440783,-999.0,0.00037635,3]
[394879182,1764053440792,-176.83952444,0.00037751,7]
[394879183,1764053440801,-179.72933111,0.00037751,7]
[394879184,1764053440811,-218.35169458,0.00037751,7]
[394879185,1764053440820,-271.00966251,0.00037751,7]
[394879186,1764053440829,-272.49438005,0.00037751,7]
[394879187,1764053440838,-7476.85,0.00037884,2]
[394879188,1764053440847,-152.0,0.00038031,3]
[394879189,1764053440857,-166.66,0.00038229,30]
[394879190,1764053440866,-851.656,0.00038244,51]
[394879192,1764053440875,-317.25250124,0.00038316,7]
[394879193,1764053440884,-500.0,0.00038356,8]
[394879194,1764053440893,-517.53628384,0.00038356,8]
[394879195,1764053440902,-500.0,0.00038356,8]
[394879196,1764053440912,-182.25902067,0.00038356,8]
[394879197,1764053440920,-500.0,0.00038356,8]
[394879198,1764053440930,-500.0,0.00038356,8]
[394879199,1764053440940,-166.66,0.00038453,2]
[394879200,1764053440949,-1000.0,0.00038568,7]
[394879201,1764053440958,-500.0,0.0003863,8]
[394879202,1764053440966,-500.0,0.0003863,8]
[394879203,1764053440976,-500.0,0.0003863,8]
[394879204,1764053440985,-500.0,0.0003863,8]
[394879205,1764053440994,-760.97901858,0.0003883,2]
[394879206,1764053441004,-150.0,0.0003883,2]
[394879207,1764053441013,-150.0,0.0003883,2]
[394879208,1764053441022,-150.0,0.0003883,2]
[394879209,1764053441031,-150.0,0.0003883,2]
[394879210,1764053441040,-5000.0,0.00038832,120]
[394879211,1764053441050,-500.0,0.00038904,8]
[394879212,1764053441060,-500.0,0.00038904,8]
[394879213,1764053441069,-500.0,0.00038904,8]
[394879214,1764053441078,-500.0,0.00038904,8]
[394879215,1764053441087,-150.0,0.00038967,2]
[394879216,1764053441097,-150.0,0.00038967,2]
[394879217,1764053441107,-150.0,0.00038967,2]
[394879218,1764053441116,-166.66,0.00038972,30]
[394879219,1764053441127,-188.0,0.00039104,2]
[394879220,1764053441137,-150.0,0.00039104,2]
[394879221,1764053441146,-150.0,0.00039104,2]
[394879222,1764053441155,-2876.17,0.00039129,2]
[394879223,1764053441165,-500.0,0.00039178,8]
[394879224,1764053441175,-500.0,0.00039178,8]
[394879225,1764053441184,-500.0,0.00039178,8]
[394879226,1764053441193,-500.0,0.00039178,8]
[394879227,1764053441203,-500.0,0.000392,5]
[394879228,1764053441212,-150.0,0.00039241,2]
[394879229,1764053441222,-150.0,0.00039241,2]
[394879230,1764053441231,-214.7,0.00039248,2]
[394879231,1764053441241,-150.0,0.00039378,2]
[394879232,1764053441249,-1613.44,0.00039421,2]
[394879233,1764053441258,-1500.0,0.0003945,120]
[394879234,1764053441267,-500.0,0.00039452,8]
[394879235,1764053441276,-500.0,0.00039452,8]
[394879236,1764053441285,-500.0,0.00039452,8]
[394879237,1764053441294,-150.0,0.00039452,8]
[394879238,1764053441302,-500.0,0.00039452,8]
[394879239,1764053441311,-500.0,0.00039452,8]
[394879240,1764053441320,-208.7124507,0.00039452,8]
[394879241,1764053441328,-150.0,0.00039452,8]
[394879242,1764053441337,-150.0,0.00039452,8]
[394879243,1764053441346,-150.0,0.00039452,8]
[394879244,1764053441355,-150.0,0.00039452,8]
[394879245,1764053441363,-203.73141691,0.00039452,8]
[394879246,1764053441374,-150.0,0.00039452,8]
[394879247,1764053441386,-150.0,0.00039452,8]
[394879248,1764053441395,-500.0,0.00039452,8]
[394879249,1764053441405,-250.0,0.00039515,2]
[394879250,1764053441415,-150.0,0.00039589,8]
[394879251,1764053441424,-500.0,0.00039589,8]
[394879252,1764053441433,-207.71038414,0.00039589,8]
[394879253,1764053441441,-212.37401104,0.00039589,8]
[394879254,1764053441450,-150.0,0.00039589,8]
[394879255,1764053441462,-150.0,0.00039589,8]
[394879256,1764053441471,-150.0,0.00039589,8]
[394879257,1764053441479,-150.0,0.00039589,8]
[394879258,1764053441488,-500.0,0.00039589,8]
[394879259,1764053441497,-200.0,0.000396,20]
[394879260,1764053441506,-170.26,0.00039608,2]
[394879261,1764053441515,-489.85,0.00039654,2]
[394879262,1764053441524,-166.66,0.00039722,2]
[394879263,1764053441534,-226.44152871,0.00039726,8]
[394879264,1764053441551,-640.20821005,0.00039726,8]
[394879265,1764053441560,-205.90777453,0.00039726,8]
[394879266,1764053441569,-264.01132078,0.00039726,8]